fUST/lending_fUST_20250723
["ID","MTS","AMOUNT","RATE_DAILY","PERIOD"]
[374262263,1753260640794,-460.0,0.00019452,2]
[374262265,1753260640803,-1643.25,0.00019452,2]
[374262267,1753260640814,-460.0,0.00019452,2]
[374262269,1753260640826,-460.0,0.00019452,2]
[374262271,1753260640836,-1352.51,0.00019452,2]
[374262273,1753260640845,-460.0,0.00019452,2]
[374262275,1753260640864,-460.0,0.00019452,2]
[374262277,1753260640874,-1446.52,0.00019452,2]
[374262279,1753260640884,-460.0,0.00019452,2]
[374262281,1753260640894,-460.0,0.00019452,2]
[374262283,1753260640903,-489.77,0.00019452,2]
[374262285,1753260640912,-460.0,0.00019452,2]
[374262287,1753260640921,-460.0,0.00019452,2]
[374262289,1753260640931,-460.0,0.00019452,2]
[374262291,1753260640940,-644.71,0.00019452,2]
[374262293,1753260640950,-460.0,0.00019452,2]
[374262295,1753260640959,-279.20976402,0.00019452,2]
[374262297,1753260640978,-1406.38,0.00019452,2]
[374262299,1753260640987,-460.0,0.00019452,2]
[374262301,1753260640997,-460.0,0.00019452,2]
[374262303,1753260641009,-564.6643063,0.00019452,2]
[374262305,1753260641018,-460.0,0.00019452,2]
[374262307,1753260641028,-1061.1,0.00019452,2]
[374262309,1753260641037,-460.0,0.00019452,2]
[374262311,1753260641047,-460.0,0.00019452,2]
[374262313,1753260641056,-740.5,0.00019452,2]
[374262315,1753260641067,-1928.69,0.00019452,2]
[374262317,1753260641077,-460.0,0.00019452,2]
[374262319,1753260641087,-486.02,0.00019452,2]
[374262321,1753260641098,-333.36683095,0.00019452,2]
[374262323,1753260641108,-460.0,0.00019452,2]
[374262325,1753260641117,-460.0,0.00019452,2]
[374262327,1753260641128,-471.12,0.00019452,2]
[374262329,1753260641138,-2139.67,0.00019452,2]
[374262331,1753260641148,-460.0,0.00019452,2]
[374262333,1753260641158,-460.0,0.00019452,2]
[374262335,1753260641167,-465.03226255,0.00019452,2]
[374262337,1753260641176,-188.30857997,0.00019452,2]
[374262339,1753260641187,-460.0,0.00019452,2]
[374262341,1753260641196,-460.0,0.00019452,2]
[374262343,1753260641206,-460.0,0.00019452,2]
[374262345,1753260641216,-4820.06,0.00019452,2]
[374262347,1753260641225,-460.0,0.00019452,2]
[374262349,1753260641235,-460.0,0.00019452,2]
[374262351,1753260641244,-460.0,0.00019452,2]
[374262353,1753260641254,-3475.4,0.00019452,2]
[374262355,1753260641263,-460.0,0.00019452,2]
[374262357,1753260641272,-460.0,0.00019452,2]
[374262359,1753260641281,-460.0,0.00019452,2]
[374262361,1753260641291,-460.0,0.00019452,2]
[374262363,1753260641302,-778.92,0.00019452,2]
[374262366,1753260641314,-500.0,0.00019473,2]
[374262368,1753260641323,-500.0,0.00019473,2]
[374262370,1753260641333,-500.0,0.00019473,2]
[374262372,1753260641343,-3494.95108143,0.00019584,2]
[374262374,1753260641352,-460.0,0.00019602,2]
[374262375,1753260641361,-460.0,0.00019602,2]
[374262377,1753260641370,-460.0,0.00019602,2]
[374262379,1753260641380,-460.0,0.00019602,2]
[374262381,1753260641389,-460.0,0.00019602,2]
[374262384,1753260641400,-460.0,0.00019602,2]
[374262386,1753260641409,-460.0,0.00019602,2]
[374262388,1753260641418,-464.22433652,0.00019602,2]
[374262390,1753260641428,-460.0,0.00019602,2]
[374262392,1753260641437,-460.0,0.00019602,2]
[374262394,1753260641447,-460.0,0.00019602,2]
[374262396,1753260641456,-460.0,0.00019602,2]
[374262398,1753260641465,-466.90345677,0.00019602,2]
[374262400,1753260641474,-460.0,0.00019602,2]
[374262402,1753260641484,-460.0,0.00019602,2]
[374262404,1753260641493,-460.0,0.00019602,2]
[374262406,1753260641503,-460.0,0.00019602,2]
[374262408,1753260641512,-460.0,0.00019602,2]
[374262410,1753260641522,-460.0,0.00019602,2]
[374262412,1753260641531,-460.0,0.00019602,2]
[374262414,1753260641541,-460.0,0.00019602,2]
[374262416,1753260641550,-460.0,0.00019602,2]
[374262418,1753260641565,-460.0,0.00019602,2]
[374262420,1753260641575,-460.0,0.00019603,2]
[374262422,1753260641584,-460.0,0.00019603,2]
[374262423,1753260641594,-460.0,0.00019603,2]
[374262424,1753260641603,-460.0,0.00019603,2]
[374262425,1753260641612,-460.0,0.00019603,2]
[374262426,1753260641621,-460.0,0.00019603,2]
[374262427,1753260641631,-460.0,0.00019603,2]
[374262428,1753260641641,-460.0,0.00019603,2]
[374262429,1753260641651,-460.0,0.00019603,2]
[374262430,1753260641661,-460.0,0.00019603,2]
[374262431,1753260641670,-550.1,0.00019603,2]
[374262432,1753260641679,-460.0,0.00019603,2]
[374262433,1753260641688,-460.0,0.00019603,2]
[374262434,1753260641697,-460.0,0.00019603,2]
[374262435,1753260641707,-17679.06371995,0.00019626,2]
[374262436,1753260641716,-2639.0411599,0.00019626,2]
[374262437,1753260641726,-500.0,0.00019673,2]
[374262438,1753260641736,-179.9069,0.00019675,3]
[374262439,1753260641745,-159.346112,0.00019675,3]
[374262440,1753260641754,-1063.59,0.00019725,2]
[374262441,1753260641766,-460.0,0.00019725,2]
[374262442,1753260641775,-378.52045676,0.00019726,2]
[374262443,1753260641784,-460.0,0.00019726,2]
[374262444,1753260641794,-460.0,0.00019726,2]
[374262445,1753260641804,-467.47723467,0.00019726,2]
[374262447,1753260641813,-460.0,0.00019726,2]
[374262449,1753260641823,-460.0,0.00019726,2]
[374262450,1753260641832,-777.7,0.00019726,2]
[374262452,1753260641842,-460.0,0.00019726,2]
[374262454,1753260641851,-460.0,0.00019726,2]
[374262456,1753260641860,-559.34486732,0.00019726,2]
[374262458,1753260641870,-460.0,0.00019726,2]
[374262460,1753260641880,-460.0,0.00019726,2]
[374262462,1753260641890,-460.0,0.00019726,2]
[374262464,1753260641899,-460.0,0.00019726,2]
[374262466,1753260641910,-460.0,0.00019726,2]
[374262468,1753260641919,-460.0,0.00019726,2]
[374262471,1753260641929,-1219.44,0.00019726,2]
[374262473,1753260641938,-460.0,0.00019726,2]
[374262474,1753260641947,-537.82634601,0.00019726,2]
[374262476,1753260641957,-556.0,0.00019726,2]
[374262478,1753260641966,-460.0,0.00019726,2]
[374262480,1753260641975,-460.0,0.00019726,2]
[374262482,1753260641984,-460.0,0.00019726,2]
[374262484,1753260641993,-460.0,0.00019726,2]
[374262486,1753260642003,-1829.6,0.00019726,2]
[374262488,1753260642012,-466.41807707,0.00019726,2]
[374262490,1753260642022,-460.0,0.00019726,2]
[374262492,1753260642031,-460.0,0.00019726,2]
[374262494,1753260642041,-460.0,0.00019726,2]
[374262496,1753260642050,-329.26982659,0.00019726,2]
[374262498,1753260642061,-460.0,0.00019726,2]
[374262501,1753260642070,-460.0,0.00019726,2]
[374262502,1753260642079,-3282.15,0.00019726,2]
[374262504,1753260642089,-460.0,0.00019726,2]
[374262506,1753260642098,-460.0,0.00019726,2]
[374262508,1753260642108,-460.0,0.00019726,2]
[374262510,1753260642117,-460.0,0.00019726,2]
[374262512,1753260642127,-460.0,0.00019726,2]
[374262514,1753260642136,-460.0,0.00019726,2]
[374262516,1753260642146,-460.0,0.00019726,2]
[374262518,1753260642155,-460.0,0.00019726,2]
[374262520,1753260642164,-564.16,0.00019726,2]
[374262522,1753260642173,-460.0,0.00019726,2]
[374262524,1753260642183,-460.0,0.00019726,2]
[374262526,1753260642192,-460.0,0.00019726,2]
[374262528,1753260642202,-460.0,0.00019726,2]
[374262530,1753260642211,-2621.57,0.00019726,2]
[374262532,1753260642220,-439.98003465,0.00019726,2]
[374262534,1753260642230,-460.0,0.00019726,2]
[374262537,1753260642240,-460.0,0.00019726,2]
[374262539,1753260642250,-460.0,0.00019726,2]
[374262541,1753260642260,-460.0,0.00019726,2]
[374262543,1753260642269,-460.0,0.00019726,2]
[374262545,1753260642278,-1643.25,0.00019726,2]
[374262547,1753260642288,-1352.51,0.00019726,2]
[374262548,1753260642297,-460.0,0.00019726,2]
[374262550,1753260642306,-1446.52,0.00019726,2]
[374262552,1753260642317,-460.0,0.00019726,2]
[374262554,1753260642326,-489.77,0.00019726,2]
[374262556,1753260642335,-460.0,0.00019726,2]
[374262558,1753260642345,-460.0,0.00019726,2]
[374262560,1753260642355,-460.0,0.00019726,2]
[374262562,1753260642364,-644.71,0.00019726,2]
[374262564,1753260642373,-460.0,0.00019726,2]
[374262566,1753260642382,-1406.38,0.00019726,2]
[374262568,1753260642391,-460.0,0.00019726,2]
[374262570,1753260642400,-460.0,0.00019726,2]
[374262571,1753260642410,-460.0,0.00019726,2]
[374262574,1753260642419,-460.0,0.00019726,2]
[374262575,1753260642428,-1061.1,0.00019726,2]
[374262577,1753260642437,-460.0,0.00019726,2]
[374262579,1753260642446,-740.5,0.00019726,2]
[374262581,1753260642456,-1928.69,0.00019726,2]
[374262583,1753260642465,-460.0,0.00019726,2]
[374262585,1753260642475,-460.0,0.00019726,2]
[374262587,1753260642485,-471.12,0.00019726,2]
[374262589,1753260642494,-2139.67,0.00019726,2]
[374262591,1753260642504,-460.0,0.00019726,2]
[374262593,1753260642513,-323.73824741,0.00019726,2]
[374262595,1753260642523,-460.0,0.00019726,2]
[374262597,1753260642532,-595.55698879,0.00019726,2]
[374262599,1753260642542,-573.91245876,0.00019726,2]
[374262601,1753260642551,-4820.06,0.00019726,2]
[374262603,1753260642563,-460.0,0.00019726,2]
[374262605,1753260642572,-460.0,0.00019726,2]
[374262607,1753260642582,-460.0,0.00019726,2]
[374262609,1753260642591,-3475.4,0.00019726,2]
[374262611,1753260642601,-460.0,0.00019726,2]
[374262613,1753260642611,-460.0,0.00019726,2]
[374262615,1753260642621,-460.0,0.00019726,2]
[374262617,1753260642631,-778.92,0.00019726,2]
[374262619,1753260642641,-500.0,0.00019873,2]
[374262621,1753260642651,-460.0,0.00019876,2]
[374262623,1753260642661,-460.0,0.00019876,2]
[374262625,1753260642670,-460.0,0.00019876,2]
[374262627,1753260642681,-460.0,0.00019876,2]
[374262629,1753260642691,-159.13280513,0.00019876,2]
[374262631,1753260642700,-460.0,0.00019876,2]
[374262633,1753260642710,-460.0,0.00019876,2]
[374262635,1753260642719,-193.0448841,0.00019876,2]
[374262637,1753260642729,-460.0,0.00019876,2]
[374262639,1753260642738,-460.0,0.00019876,2]
[374262641,1753260642748,-460.0,0.00019876,2]
[374262643,1753260642758,-460.0,0.00019876,2]
[374262645,1753260642767,-460.0,0.00019876,2]
[374262647,1753260642777,-460.0,0.00019876,2]
[374262649,1753260642787,-464.32247974,0.00019876,2]
[374262651,1753260642796,-460.0,0.00019876,2]
[374262653,1753260642805,-460.0,0.00019876,2]
[374262655,1753260642816,-166.16714709,0.00019876,2]
[374262657,1753260642825,-460.0,0.00019876,2]
[374262659,1753260642835,-460.0,0.00019876,2]
[374262661,1753260642844,-460.0,0.00019876,2]
[374262663,1753260642854,-460.0,0.00019876,2]
[374262665,1753260642863,-460.0,0.00019876,2]
[374262667,1753260642873,-460.0,0.00019876,2]
[374262669,1753260642882,-460.0,0.00019876,2]
[374262671,1753260642891,-460.0,0.00019876,2]
[374262673,1753260642901,-599.79484754,0.00019876,2]
[374262675,1753260642910,-2780.20238401,0.000199,2]
[374262677,1753260642920,-1063.59,0.00019999,2]
[374262679,1753260642930,-460.0,0.00019999,2]
[374262681,1753260642939,-9736.49436581,0.0002,2]
[374262683,1753260642948,-459.42960073,0.0002,2]
[374262685,1753260642958,-460.0,0.0002,2]
[374262687,1753260642968,-460.0,0.0002,2]
[374262689,1753260642978,-777.7,0.0002,2]
[374262691,1753260642987,-460.0,0.0002,2]
[374262693,1753260642997,-460.0,0.0002,2]
[374262695,1753260643007,-460.0,0.0002,2]
[374262697,1753260643016,-460.0,0.0002,2]
[374262699,1753260643027,-460.0,0.0002,2]
[374262701,1753260643036,-460.0,0.0002,2]
[374262703,1753260643045,-460.0,0.0002,2]
[374262705,1753260643054,-1219.44,0.0002,2]
[374262707,1753260643063,-556.0,0.0002,2]
[374262709,1753260643073,-460.0,0.0002,2]
[374262711,1753260643082,-465.77190469,0.0002,2]
[374262712,1753260643091,-390.47722841,0.0002,2]
[374262717,1753260643131,-1829.6,0.0002,2]
[374262719,1753260643140,-460.0,0.0002,2]
[374262721,1753260643150,-460.0,0.0002,2]
[374262723,1753260643159,-460.0,0.0002,2]
[374262725,1753260643168,-396.62405628,0.0002,2]
[374262727,1753260643177,-3282.15,0.0002,2]
[374262729,1753260643187,-460.0,0.0002,2]
[374262731,1753260643196,-460.0,0.0002,2]
[374262733,1753260643206,-460.0,0.0002,2]
[374262735,1753260643215,-460.0,0.0002,2]
[374262737,1753260643224,-420.0,0.0002,2]
[374262739,1753260643234,-460.0,0.0002,2]
[374262741,1753260643243,-564.16,0.0002,2]
[374262742,1753260643252,-460.0,0.0002,2]
[374262744,1753260643261,-460.0,0.0002,2]
[374262746,1753260643271,-214.57871944,0.0002,2]
[374262748,1753260643280,-2621.57,0.0002,2]
[374262750,1753260643294,-460.0,0.0002,2]
[374262752,1753260643303,-460.0,0.0002,2]
[374262754,1753260643312,-460.0,0.0002,2]
[374262756,1753260643322,-460.0,0.0002,2]
[374262758,1753260643331,-460.0,0.0002,2]
[374262760,1753260643341,-1643.25,0.0002,2]
[374262762,1753260643350,-460.0,0.0002,2]
[374262764,1753260643360,-1352.51,0.0002,2]
[374262766,1753260643369,-1446.52,0.0002,2]
[374262768,1753260643379,-606.52421361,0.0002,2]
[374262770,1753260643388,-489.77,0.0002,2]
[374262772,1753260643398,-460.0,0.0002,2]
[374262774,1753260643407,-460.0,0.0002,2]
[374262776,1753260643416,-460.0,0.0002,2]
[374262778,1753260643425,-644.71,0.0002,2]
[374262780,1753260643435,-460.0,0.0002,2]
[374262782,1753260643443,-1406.38,0.0002,2]
[374262783,1753260643454,-460.0,0.0002,2]
[374262785,1753260643463,-460.0,0.0002,2]
[374262787,1753260643472,-1061.1,0.0002,2]
[374262789,1753260643482,-460.0,0.0002,2]
[374262791,1753260643491,-460.0,0.0002,2]
[374262793,1753260643501,-740.5,0.0002,2]
[374262795,1753260643510,-1928.69,0.0002,2]
[374262797,1753260643519,-160.0,0.0002,3]
[374262799,1753260643529,-460.0,0.0002,2]
[374262801,1753260643538,-460.0,0.0002,2]
[374262803,1753260643548,-471.12,0.0002,2]
[374262805,1753260643562,-2139.67,0.0002,2]
[374262807,1753260643572,-460.0,0.0002,2]
[374262809,1753260643581,-466.80413339,0.0002,2]
[374262811,1753260643590,-4820.06,0.0002,2]
[374262813,1753260643599,-460.0,0.0002,2]
[374262815,1753260643609,-460.0,0.0002,2]
[374262817,1753260643619,-460.0,0.0002,2]
[374262819,1753260643628,-3475.4,0.0002,2]
[374262821,1753260643639,-460.0,0.0002,2]
[374262823,1753260643649,-460.0,0.0002,2]
[374262825,1753260643658,-778.92,0.0002,2]
[374262826,1753260643667,-460.0,0.0002,2]
[374262828,1753260643676,-160.0,0.00020007,2]
[374262830,1753260643686,-1000.0,0.00020021,2]
[374262832,1753260643697,-500.0,0.00020021,2]
[374262834,1753260643707,-2780.20238376,0.00020107,2]
[374262836,1753260643716,-518.92,0.0002015,2]
[374262838,1753260643726,-460.0,0.0002015,2]
[374262840,1753260643735,-460.0,0.0002015,2]
[374262842,1753260643745,-460.0,0.0002015,2]
[374262844,1753260643754,-460.0,0.0002015,2]
[374262846,1753260643764,-460.0,0.0002015,2]
[374262848,1753260643773,-460.0,0.0002015,2]
[374262850,1753260643783,-460.0,0.0002015,2]
[374262852,1753260643793,-460.0,0.0002015,2]
[374262854,1753260643802,-355.68675995,0.0002015,2]
[374262856,1753260643812,-460.0,0.0002015,2]
[374262858,1753260643821,-460.0,0.0002015,2]
[374262860,1753260643830,-460.0,0.0002015,2]
[374262862,1753260643840,-460.0,0.0002015,2]
[374262864,1753260643850,-395.45902363,0.0002015,2]
[374262866,1753260643859,-460.0,0.0002015,2]
[374262868,1753260643868,-179.9069,0.0002015,3]
[374262870,1753260643877,-159.346112,0.0002015,3]
[374262872,1753260643886,-378.87124963,0.0002015,2]
[374262874,1753260643895,-3494.95108143,0.00020157,2]
[374262876,1753260643905,-452.893865,0.00020187,2]
[374262878,1753260643913,-151.0,0.000202,3]
[374262880,1753260643923,-539.14329878,0.00020221,2]
[374262882,1753260643932,-460.0,0.00020273,2]
[374262884,1753260643941,-460.0,0.00020273,2]
[374262886,1753260643950,-777.7,0.00020273,2]
[374262888,1753260643960,-1061.75828005,0.00020273,2]
[374262890,1753260643969,-460.0,0.00020273,2]
[374262892,1753260643978,-460.0,0.00020273,2]
[374262894,1753260643987,-460.0,0.00020273,2]
[374262895,1753260643996,-460.0,0.00020273,2]
[374262897,1753260644006,-460.0,0.00020273,2]
[374262899,1753260644015,-460.0,0.00020273,2]
[374262901,1753260644024,-460.0,0.00020273,2]
[374262903,1753260644033,-1219.44,0.00020273,2]
[374262905,1753260644043,-556.0,0.00020273,2]
[374262907,1753260644051,-460.0,0.00020273,2]
[374262909,1753260644060,-1829.6,0.00020273,2]
[374262911,1753260644069,-546.68336358,0.00020273,2]
[374262913,1753260644078,-460.0,0.00020273,2]
[374262915,1753260644087,-3282.15,0.00020273,2]
[374262917,1753260644097,-460.0,0.00020273,2]
[374262919,1753260644106,-460.0,0.00020273,2]
[374262921,1753260644115,-460.0,0.00020273,2]
[374262923,1753260644124,-564.16,0.00020273,2]
[374262925,1753260644133,-460.0,0.00020273,2]
[374262927,1753260644142,-460.0,0.00020273,2]
[374262929,1753260644151,-2621.57,0.00020273,2]
[374262931,1753260644159,-460.0,0.00020273,2]
[374262933,1753260644168,-460.0,0.00020273,2]
[374262935,1753260644177,-460.0,0.00020273,2]
[374262937,1753260644186,-460.0,0.00020273,2]
[374262938,1753260644195,-460.0,0.00020273,2]
[374262939,1753260644204,-1643.25,0.00020273,2]
[374262940,1753260644213,-1352.51,0.00020273,2]
[374262941,1753260644222,-347.88,0.00020273,2]
[374262942,1753260644231,-1446.52,0.00020273,2]
[374262943,1753260644240,-489.77,0.00020273,2]
[374262944,1753260644249,-460.0,0.00020273,2]
[374262945,1753260644259,-460.0,0.00020273,2]
[374262946,1753260644268,-460.0,0.00020273,2]
[374262948,1753260644278,-644.71,0.00020273,2]
[374262950,1753260644287,-460.0,0.00020273,2]
[374262952,1753260644297,-1063.59,0.00020273,2]
[374262954,1753260644307,-1406.38,0.00020273,2]
[374262956,1753260644317,-460.0,0.00020273,2]
[374262958,1753260644326,-460.0,0.00020273,2]
[374262960,1753260644336,-1061.1,0.00020273,2]
[374262962,1753260644346,-460.0,0.00020273,2]
[374262964,1753260644355,-460.0,0.00020273,2]
[374262966,1753260644364,-460.0,0.00020273,2]
[374262968,1753260644374,-1928.69,0.00020273,2]
[374262970,1753260644383,-740.5,0.00020273,2]
[374262972,1753260644393,-460.0,0.00020273,2]
[374262974,1753260644402,-460.0,0.00020273,2]
[374262977,1753260644413,-471.12,0.00020273,2]
[374262978,1753260644422,-2139.67,0.00020273,2]
[374262980,1753260644431,-460.0,0.00020273,2]
[374262982,1753260644441,-4820.06,0.00020273,2]
[374262984,1753260644450,-460.0,0.00020273,2]
[374262986,1753260644460,-460.0,0.00020273,2]
[374262988,1753260644469,-460.0,0.00020273,2]
[374262990,1753260644478,-3475.4,0.00020273,2]
[374262992,1753260644487,-460.0,0.00020273,2]
[374262994,1753260644497,-246.64489417,0.00020273,2]
[374262996,1753260644506,-778.92,0.00020273,2]
[374262999,1753260644515,-460.0,0.00020273,2]
[374263001,1753260644525,-160.0,0.00020313,2]
[374263003,1753260644534,-160.0,0.00020313,2]
[374263005,1753260644544,-215.84326551,0.00020313,2]
[374263007,1753260644553,-840.06856235,0.00020313,2]
[374263009,1753260644567,-160.0,0.00020313,2]
[374263011,1753260644577,-160.0,0.00020313,2]
[374263013,1753260644586,-12622.36869388,0.00020313,2]
[374263015,1753260644596,-476.696448,0.00020313,2]
[374263017,1753260644606,-160.0,0.00020313,2]
[374263019,1753260644615,-231.11583447,0.00020313,2]
[374263021,1753260644625,-214.67886746,0.00020313,2]
[374263023,1753260644636,-160.0,0.00020313,2]
[374263025,1753260644645,-526.15909479,0.00020313,2]
[374263027,1753260644654,-2780.20238376,0.00020314,3]
[374263029,1753260644663,-151.0,0.000204,4]
[374263031,1753260644672,-504.11449161,0.00020421,2]
[374263033,1753260644683,-460.0,0.00020424,2]
[374263035,1753260644692,-460.0,0.00020424,2]
[374263037,1753260644702,-455.24924495,0.00020424,2]
[374263039,1753260644711,-460.0,0.00020424,2]
[374263041,1753260644721,-460.0,0.00020424,2]
[374263043,1753260644731,-460.0,0.00020424,2]
[374263045,1753260644740,-460.0,0.00020424,2]
[374263047,1753260644750,-460.0,0.00020424,2]
[374263049,1753260644759,-284.16,0.00020424,2]
[374263051,1753260644769,-460.0,0.00020424,2]
[374263053,1753260644780,-460.0,0.00020424,2]
[374263055,1753260644789,-460.0,0.00020424,2]
[374263057,1753260644799,-460.0,0.00020424,2]
[374263059,1753260644809,-3494.95108143,0.00020438,2]
[374263061,1753260644819,-1463.48791482,0.00020446,2]
[374263063,1753260644828,-390.0,0.00020473,2]
[374263065,1753260644838,-2780.20238376,0.00020521,3]
[374263068,1753260644847,-4247.03312021,0.00020547,2]
[374263069,1753260644856,-460.0,0.00020547,2]
[374263071,1753260644866,-460.0,0.00020547,2]
[374263074,1753260644876,-777.7,0.00020547,2]
[374263076,1753260644886,-460.0,0.00020547,2]
[374263078,1753260644895,-460.0,0.00020547,2]
[374263080,1753260644905,-460.0,0.00020547,2]
[374263082,1753260644915,-460.0,0.00020547,2]
[374263084,1753260644924,-460.0,0.00020547,2]
[374263086,1753260644934,-460.0,0.00020547,2]
[374263088,1753260644944,-1219.44,0.00020547,2]
[374263090,1753260644954,-556.0,0.00020547,2]
[374263092,1753260644963,-460.0,0.00020547,2]
[374263094,1753260644973,-1829.6,0.00020547,2]
[374263096,1753260644983,-460.0,0.00020547,2]
[374263098,1753260644993,-3282.15,0.00020547,2]
[374263100,1753260645003,-460.0,0.00020547,2]
[374263102,1753260645013,-460.0,0.00020547,2]
[374263104,1753260645023,-460.0,0.00020547,2]
[374263106,1753260645033,-564.16,0.00020547,2]
[374263109,1753260645042,-460.0,0.00020547,2]
[374263110,1753260645053,-460.0,0.00020547,2]
[374263112,1753260645062,-2621.57,0.00020547,2]
[374263114,1753260645071,-460.0,0.00020547,2]
[374263116,1753260645080,-460.0,0.00020547,2]
[374263118,1753260645089,-460.0,0.00020547,2]
[374263121,1753260645098,-460.0,0.00020547,2]
[374263122,1753260645108,-460.0,0.00020547,2]
[374263124,1753260645117,-1643.25,0.00020547,2]
[374263127,1753260645127,-1352.51,0.00020547,2]
[374263128,1753260645136,-1446.52,0.00020547,2]
[374263131,1753260645146,-489.77,0.00020547,2]
[374263133,1753260645156,-460.0,0.00020547,2]
[374263135,1753260645166,-460.0,0.00020547,2]
[374263137,1753260645175,-460.0,0.00020547,2]
[374263139,1753260645185,-644.71,0.00020547,2]
[374263141,1753260645195,-460.0,0.00020547,2]
[374263143,1753260645204,-1063.59,0.00020547,2]
[374263145,1753260645213,-1406.38,0.00020547,2]
[374263147,1753260645223,-460.0,0.00020547,2]
[374263149,1753260645232,-460.0,0.00020547,2]
[374263151,1753260645242,-1061.1,0.00020547,2]
[374263153,1753260645251,-410.38,0.00020547,2]
[374263155,1753260645260,-460.0,0.00020547,2]
[374263157,1753260645270,-460.0,0.00020547,2]
[374263159,1753260645279,-1928.69,0.00020547,2]
[374263161,1753260645288,-740.5,0.00020547,2]
[374263163,1753260645297,-460.0,0.00020547,2]
[374263165,1753260645307,-460.0,0.00020547,2]
[374263167,1753260645317,-471.12,0.00020547,2]
[374263169,1753260645326,-2139.67,0.00020547,2]
[374263171,1753260645336,-460.0,0.00020547,2]
[374263173,1753260645346,-4820.06,0.00020547,2]
[374263175,1753260645356,-460.0,0.00020547,2]
[374263178,1753260645365,-460.0,0.00020547,2]
[374263180,1753260645375,-151.0,0.00020547,2]
[374263181,1753260645384,-460.0,0.00020547,2]
[374263184,1753260645394,-3475.4,0.00020547,2]
[374263186,1753260645403,-460.0,0.00020547,2]
[374263188,1753260645412,-778.92,0.00020547,2]
[374263190,1753260645422,-460.0,0.00020547,2]
[374263192,1753260645431,-260.0,0.00020555,2]
[374263194,1753260645440,-3494.95108143,0.00020558,2]
[374263196,1753260645450,-803.68,0.0002056,3]
[374263198,1753260645460,-401.84,0.0002056,3]
[374263200,1753260645469,-1012.44263308,0.00020568,2]
[374263202,1753260645479,-179.9069,0.00020625,3]
[374263204,1753260645488,-159.346112,0.00020625,3]
[374263206,1753260645498,-178.56887845,0.00020677,2]
[374263208,1753260645507,-418.585,0.00020677,2]
[374263210,1753260645516,-460.0,0.00020698,2]
[374263212,1753260645526,-460.0,0.00020698,2]
[374263214,1753260645535,-460.0,0.00020698,2]
[374263216,1753260645544,-460.0,0.00020698,2]
[374263218,1753260645555,-460.0,0.00020698,2]
[374263220,1753260645569,-460.0,0.00020698,2]
[374263222,1753260645578,-460.0,0.00020698,2]
[374263224,1753260645588,-151.0,0.000207,4]
[374263226,1753260645597,-2780.20238376,0.00020728,3]
[374263228,1753260645608,-460.0,0.00020821,2]
[374263230,1753260645617,-460.0,0.00020821,2]